bitfinex-derivatives/quotes_SOLF0:USTF0_20220109
["timestamp","ask_amount","ask_price","bid_price","bid_amount"]
[1641704886653,4.0,143.28,143.23,2.66133017]
[1641704886852,10.98226505,143.28,143.23,2.66133017]
[1641704887454,4.0,143.27,143.23,2.66133017]
[1641704887654,9.857,143.27,143.22,27.66479]
[1641704892063,5.857,143.27,143.22,27.66479]
[1641704892265,4.0,143.25,143.22,27.66479]
[1641704892667,9.857,143.27,143.22,27.66479]
[1641704893065,4.0,143.26,143.22,27.66479]
[1641704893265,9.857,143.27,143.22,27.66479]
[1641704894772,4.0,143.27,143.22,27.66479]
[1641704896874,4.0,143.26,143.22,27.66479]
[1641704897575,4.0,143.27,143.22,27.66479]
[1641704897775,6.98226505,143.28,143.22,27.66479]
[1641704903182,10.98226505,143.28,143.22,27.66479]
[1641704903683,4.0,143.27,143.22,27.66479]
[1641704905285,6.98226505,143.28,143.22,27.66479]
[1641704906289,10.98226505,143.28,143.22,27.66479]
[1641704907188,6.98348406,143.25,143.22,27.66479]
[1641704908487,6.98348406,143.25,143.2,27.66479]
[1641704911689,4.0,143.24,143.2,27.66479]
[1641704911890,6.98348406,143.25,143.2,27.66479]
[1641704912890,4.0,143.24,143.2,27.66479]
[1641704913492,6.98348406,143.25,143.2,27.66479]
[1641704913891,6.98348406,143.25,143.21,2.67440586]
[1641704919202,14.72369499,143.28,143.21,2.67440586]
[1641704919405,14.72369499,143.27,143.21,2.67440586]
[1641704920204,39.49951296,143.3,143.21,2.67440586]
[1641704920405,6.98031551,143.32,143.21,13.11098711]
[1641704922107,6.98031551,143.32,143.21,18.85598711]
[1641704922308,6.98031551,143.32,143.21,14.85598711]
[1641704922710,6.98031551,143.32,143.21,30.30795851]
[1641704923112,6.98031551,143.32,143.21,32.56295851]
[1641704923513,6.98031551,143.32,143.24,27.66479]
[1641704924713,6.98031551,143.32,143.25,2.67440586]
[1641704925615,34.64510551,143.32,143.25,2.67440586]
[1641704932120,4.0,143.31,143.25,2.67440586]
[1641704932520,1.744,143.3,143.25,2.67440586]
[1641704932721,1.744,143.31,143.25,2.67440586]
[1641704933523,34.64510551,143.32,143.23,2.67440586]
[1641704935625,34.64510551,143.32,143.23,30.33919586]
[1641704936430,34.64510551,143.32,143.24,2.67440586]
[1641704940435,38.64510551,143.32,143.24,2.67440586]
[1641704941135,40.38910551,143.32,143.24,2.67440586]
[1641704942334,38.64510551,143.32,143.24,2.67440586]
[1641704943537,2.26440059,143.31,143.24,2.67440586]
[1641704952651,39.49951296,143.35,143.26,4.0]
[1641704952849,39.49951296,143.35,143.29,4.0]
[1641704953050,39.49951296,143.35,143.29,11.909]
[1641704953650,39.49951296,143.35,143.31,27.66479]
[1641704954453,74.1184524,143.4,143.31,31.66479]
[1641704954653,74.1184524,143.4,143.31,27.66479]
[1641704955255,74.1184524,143.4,143.31,64.50329]
[1641704955457,64.76729,143.4,143.31,68.50329]
[1641704955654,37.1025,143.4,143.31,78.93136664]
[1641704955858,6.97568972,143.41,143.31,78.93136664]
[1641704956656,6.97568972,143.41,143.33,4.0]
[1641704956857,6.97568972,143.41,143.33,13.143]
[1641704957058,6.97568972,143.41,143.33,9.143]
[1641704957658,6.97568972,143.41,143.34,27.66479]
[1641704964663,1.743,143.4,143.34,27.66479]
[1641704965964,8.71868972,143.41,143.34,27.66479]
[1641704967265,6.97568972,143.41,143.33,9.143]
[1641704967465,6.97568972,143.41,143.31,64.50329]
[1641704968367,10.97568972,143.41,143.31,64.50329]
[1641704968565,6.97788012,143.37,143.29,27.66479]
[1641704968765,6.97885407,143.35,143.26,39.0681]
[1641704969366,6.97885407,143.35,143.19,6.97885407]
[1641704969367,10.97885407,143.35,143.2,1.744]
[1641704969566,6.98055914,143.31,143.19,4.0]
[1641704969767,42.97634914,143.31,143.21,27.66479]
[1641704971969,44.72134914,143.31,143.21,27.66479]
[1641704972970,42.97634914,143.31,143.21,27.66479]
[1641704973171,34.64534914,143.31,143.21,27.66479]
[1641704975174,10.98177756,143.29,143.21,27.66479]
[1641704975474,6.98324022,143.26,143.21,27.66479]
[1641704980985,6.98104646,143.3,143.21,27.66479]
[1641704981187,47.06068471,143.33,143.21,27.66479]
[1641704981584,47.06068471,143.33,143.21,31.66479]
[1641704981785,47.06068471,143.33,143.24,27.66479]
[1641704981986,1.744,143.35,143.24,27.66479]
[1641704982186,72.83265706,143.36,143.24,66.84749]
[1641704982385,72.83265706,143.36,143.26,4.0]
[1641704982585,72.83265706,143.36,143.25,4.0]
[1641704983687,34.64315706,143.36,143.29,4.0]
[1641704983890,6.97836706,143.36,143.31,27.66479]
[1641704984288,6.97836706,143.36,143.29,36.39979]
[1641704987696,6.97836706,143.36,143.29,40.39979]
[1641704987898,6.97836706,143.36,143.3,4.0]
[1641704988797,6.97836706,143.36,143.29,36.39979]
[1641704989197,42.40457254,143.43,143.33,4.0]
[1641704989398,42.40457254,143.43,143.33,11.711]
[1641704989399,49.37928919,143.43,143.33,11.711]
[1641704989599,14.73978254,143.43,143.33,11.711]
[1641704989799,14.73978254,143.43,143.35,27.66479]
[1641704990200,14.73978254,143.44,143.35,31.66479]
[1641704990599,14.73978254,143.44,143.35,27.66479]
[1641704991701,66.64419,143.45,143.35,27.66479]
[1641704994206,6.97544643,143.42,143.33,27.66479]
[1641704995907,27.66479,143.41,143.33,27.66479]
[1641704997006,4.0,143.4,143.33,27.66479]
[1641704997207,4.0,143.38,143.3,39.215]
[1641704997507,6.9790976,143.34,143.29,27.66479]
[1641705000509,6.9790976,143.34,143.25,66.19059]
[1641705000709,6.9790976,143.34,143.25,27.66479]
[1641705000710,10.9790976,143.34,143.25,27.66479]
[1641705000909,10.9790976,143.34,143.24,40.4753]
[1641705001115,1.744,143.33,143.24,40.4753]
[1641705001313,8.7230976,143.34,143.24,40.4753]
[1641705001511,12.7230976,143.34,143.24,40.4753]
[1641705001712,8.7230976,143.34,143.24,40.4753]
[1641705001914,6.9790976,143.34,143.24,40.4753]
[1641705003413,6.9790976,143.34,143.25,2.66311932]
[1641705005917,6.9790976,143.34,143.26,27.66479]
[1641705006119,1.744,143.36,143.29,4.0]
[1641705006318,39.8652,143.39,143.29,11.627]
[1641705006519,14.73978254,143.4,143.29,11.627]
[1641705006719,14.73978254,143.4,143.3,4.0]
[1641705007619,6.97568972,143.41,143.31,2.66311932]
[1641705008021,6.97568972,143.41,143.33,27.66479]
[1641705008225,6.97568972,143.41,143.33,33.55579]
[1641705011029,6.97568972,143.41,143.34,2.66890993]
[1641705012735,10.97568972,143.41,143.34,2.66890993]
[1641705012934,4.0,143.39,143.34,2.66890993]
[1641705013135,6.97739325,143.38,143.34,2.66890993]
[1641705013737,6.97739325,143.38,143.31,2.66890993]
[1641705014035,27.66479,143.37,143.31,2.66890993]
[1641705014836,27.66479,143.37,143.29,27.66479]
[1641705015838,27.66479,143.37,143.3,2.66995272]
[1641705016740,27.66479,143.37,143.29,33.85179]
[1641705017140,31.66479,143.37,143.29,33.85179]
[1641705017339,27.66479,143.37,143.29,33.85179]
[1641705018045,1.744,143.36,143.29,33.85179]
[1641705018442,4.00080267,143.36,143.29,33.85179]
[1641705018841,4.00080267,143.36,143.29,6.187]
[1641705019542,61.07358,143.37,143.29,6.187]
[1641705020244,2.25758539,143.36,143.29,6.187]
[1641705021244,29.40879,143.37,143.3,2.67048415]
[1641705021544,27.66479,143.37,143.3,2.67048415]
[1641705024148,27.66479,143.37,143.3,30.33527415]
[1641705024348,41.1405,143.38,143.3,30.33527415]
[1641705025149,41.1405,143.38,143.31,2.67048415]
[1641705026950,41.1405,143.38,143.27,13.0863098]
[1641705028051,27.66479,143.37,143.27,13.0863098]
[1641705030753,31.66479,143.37,143.27,13.0863098]
[1641705031954,31.66479,143.37,143.27,2.67048415]
[1641705032156,27.66479,143.34,143.27,2.67048415]
[1641705033457,27.66479,143.37,143.27,2.67048415]
[1641705033657,64.60167579,143.38,143.27,2.67048415]
[1641705033859,62.85767579,143.38,143.27,2.67048415]
[1641705034257,62.85767579,143.38,143.3,27.66479]
[1641705034458,48.11789325,143.38,143.3,35.55079]
[1641705035259,48.11789325,143.38,143.31,2.67048415]
[1641705039565,41.1405,143.38,143.31,2.67048415]
[1641705040066,2.26169398,143.37,143.31,2.67048415]
[1641705044172,9.2395741,143.37,143.31,2.67048415]
[1641705044572,23.97935664,143.37,143.31,2.67048415]
[1641705044972,17.00147652,143.37,143.31,2.67048415]
[1641705045371,14.73978254,143.37,143.31,2.67048415]
[1641705045572,14.73978254,143.39,143.3,4.0]
[1641705045772,14.73978254,143.39,143.31,4.0]
[1641705045972,14.73978254,143.39,143.31,5.743]
[1641705046371,2.26387113,143.4,143.35,27.66479]
[1641705046574,2.26387113,143.4,143.35,36.04879]
[1641705047573,6.97593303,143.41,143.35,36.04879]
[1641705047773,6.97593303,143.41,143.36,2.67048415]
[1641705048374,6.97593303,143.41,143.35,36.04879]
[1641705048575,2.26233662,143.4,143.35,36.04879]
[1641705049475,6.97593303,143.41,143.35,36.04879]
[1641705051178,6.97593303,143.41,143.36,2.67503761]
[1641705052882,6.97593303,143.41,143.35,36.04879]
[1641705053080,6.97593303,143.41,143.35,8.384]
[1641705053281,6.97593303,143.41,143.33,66.50789]
[1641705053882,22.07854654,143.4,143.33,66.50789]
[1641705054183,22.07854654,143.4,143.33,38.8431]
[1641705054382,2.26078336,143.4,143.33,38.8431]
[1641705054583,29.92557336,143.4,143.33,38.8431]
[1641705054781,2.26078336,143.39,143.33,38.8431]
[1641705058086,27.66479,143.4,143.33,38.8431]
[1641705058285,27.66479,143.4,143.34,2.67433271]
[1641705059088,6.97593303,143.41,143.34,2.67433271]
[1641705059894,2.26051516,143.4,143.34,2.67433271]
[1641705066696,2.26051516,143.4,143.37,27.66479]
[1641705067497,2.26051516,143.45,143.38,2.67433271]
[1641705070399,42.2933,143.46,143.38,2.67433271]
[1641705070698,42.2933,143.46,143.4,27.66479]
[1641705072304,14.73978254,143.48,143.41,4.0]
[1641705072703,14.73978254,143.48,143.45,27.66479]
[1641705072905,14.73978254,143.48,143.41,38.609]
[1641705073107,14.73978254,143.48,143.4,31.66479]
[1641705073306,14.73978254,143.48,143.41,4.0]
[1641705073506,2.25710285,143.51,143.42,2.67064212]
[1641705074807,2.25710285,143.51,143.44,27.66479]
[1641705076210,16.99688539,143.51,143.44,27.66479]
[1641705076607,20.99688539,143.51,143.44,27.66479]
[1641705076809,20.99688539,143.51,143.41,41.0908]
[1641705077209,6.25710285,143.51,143.41,41.0908]
[1641705078011,2.25710285,143.5,143.41,41.0908]
[1641705078815,27.66479,143.49,143.41,41.0908]
[1641705084719,4.0,143.48,143.39,27.66479]
[1641705084921,4.0,143.47,143.33,8.71404211]
[1641705085120,27.66479,143.45,143.37,27.66479]
[1641705085320,4.0,143.44,143.37,27.66479]
[1641705085520,6.97471665,143.43,143.34,40.2624]
[1641705085719,10.97471665,143.43,143.34,40.2624]
[1641705086620,6.97471665,143.43,143.34,40.2624]
[1641705087021,6.97471665,143.43,143.34,67.92719]
[1641705087424,6.97471665,143.43,143.35,2.66723562]
[1641705091030,57.07258,143.45,143.35,2.66723562]
[1641705091228,27.66479,143.45,143.35,6.66723562]
[1641705091428,27.66479,143.45,143.36,4.0]
[1641705091630,14.73978254,143.46,143.37,4.0]
[1641705091830,14.73978254,143.46,143.36,4.0]
[1641705092030,6.97301443,143.47,143.36,6.66723562]
[1641705092230,6.97301443,143.47,143.36,2.66723562]
[1641705092529,6.97301443,143.47,143.37,4.0]
[1641705093134,6.97301443,143.47,143.4,27.66479]
[1641705095135,16.48278254,143.5,143.4,27.66479]
[1641705095337,14.73978254,143.5,143.4,31.66479]
[1641705095537,14.73978254,143.5,143.4,27.66479]
[1641705096637,14.73978254,143.5,143.4,31.66479]
[1641705096937,2.25822234,143.5,143.41,2.67197003]
[1641705097140,2.25822234,143.5,143.43,27.66479]
[1641705097737,6.97082709,143.51,143.43,27.66479]
[1641705097938,6.97082709,143.51,143.44,2.67197003]
[1641705100141,6.97082709,143.51,143.43,27.66479]
[1641705100341,2.25694068,143.5,143.43,27.66479]
[1641705101340,6.97082709,143.51,143.43,27.66479]
[1641705101541,6.97082709,143.51,143.44,2.67037501]
[1641705102041,6.97082709,143.51,143.44,6.67037501]
[1641705102242,6.97082709,143.51,143.45,4.0]
[1641705102544,6.97082709,143.51,143.44,8.41237501]
[1641705102942,6.97082709,143.51,143.45,4.0]
[1641705103145,6.97082709,143.51,143.44,4.41237501]
[1641705103344,6.97082709,143.51,143.47,27.66479]
[1641705111653,6.97082709,143.51,143.44,9.11]
[1641705111850,6.97082709,143.51,143.43,66.45139]
[1641705112553,4.0,143.5,143.4,1.742]
[1641705112854,10.97252824,143.48,143.39,40.3161]
[1641705113052,19.77252824,143.48,143.39,40.3161]
[1641705113253,4.0,143.47,143.39,40.3161]
[1641705113452,4.0,143.47,143.37,27.66479]
[1641705113453,27.66479,143.45,143.37,27.66479]
[1641705114253,27.66479,143.45,143.37,31.66479]
[1641705114453,27.66479,143.45,143.37,27.66479]
[1641705115355,27.66479,143.45,143.38,2.6640498]
[1641705117154,27.66479,143.45,143.38,11.0860498]
[1641705117454,27.66479,143.45,143.4,27.66479]
[1641705118255,34.63731824,143.48,143.4,27.66479]
[1641705118656,4.0,143.47,143.4,27.66479]
[1641705118857,34.63731824,143.48,143.4,27.66479]
[1641705121058,4.0,143.47,143.38,8.422]
[1641705121259,6.25650859,143.47,143.38,8.422]
[1641705121457,27.66479,143.44,143.38,8.422]
[1641705122156,5.743,143.47,143.38,8.422]
[1641705122157,5.743,143.47,143.39,2.66996002]
[1641705122356,36.38031824,143.48,143.39,2.66996002]
[1641705122557,34.63731824,143.48,143.39,2.66996002]
[1641705122756,2.25598585,143.47,143.39,2.66996002]
[1641705125666,2.25598585,143.47,143.39,30.33475002]
[1641705126463,34.63731824,143.48,143.39,27.66479]
[1641705127465,2.25580445,143.47,143.39,27.66479]
[1641705128066,34.63731824,143.48,143.39,27.66479]
[1641705128868,2.25562382,143.47,143.39,27.66479]
[1641705129969,34.63731824,143.48,143.39,27.66479]
[1641705135672,2.25706763,143.47,143.4,2.67050292]
[1641705141782,16.99685017,143.47,143.4,2.67050292]
[1641705145887,14.73978254,143.46,143.4,2.67050292]
[1641705154699,27.98378254,143.46,143.4,2.67050292]
[1641705154901,10.97398703,143.45,143.4,2.67050292]
[1641705155301,6.97398703,143.45,143.4,2.67050292]
[1641705155905,16.99685017,143.44,143.37,13.0839346]
[1641705156903,2.25706763,143.44,143.37,13.0839346]
[1641705157507,16.99685017,143.44,143.37,13.0839346]
[1641705158206,4.0,143.43,143.37,13.0839346]
[1641705158506,27.66479,143.42,143.37,2.67050292]
[1641705158706,6.97568972,143.41,143.37,2.67050292]
[1641705159107,10.97568972,143.41,143.37,2.67050292]
[1641705159306,4.0,143.4,143.31,27.66479]
[1641705159508,6.97739325,143.38,143.31,27.66479]
[1641705159808,6.97739325,143.38,143.34,10.44350271]
[1641705160807,6.97739325,143.38,143.31,27.66479]
[1641705161707,27.66479,143.39,143.31,27.66479]
[1641705162108,27.66479,143.39,143.32,4.0]
[1641705162307,27.66479,143.39,143.33,4.0]
[1641705162806,21.71571557,143.41,143.33,4.0]
[1641705162807,6.97593303,143.41,143.33,4.0]
[1641705163006,6.97593303,143.41,143.32,22.67250271]
[1641705163207,6.97593303,143.41,143.33,4.0]
[1641705163807,6.97593303,143.41,143.32,22.67250271]
[1641705164008,6.97593303,143.41,143.33,4.0]
[1641705164508,6.97593303,143.41,143.36,27.66479]
[1641705164808,6.97593303,143.41,143.36,7.27]
[1641705166509,6.97593303,143.41,143.36,34.93479]
[1641705170711,39.49,143.43,143.36,34.93479]
[1641705170914,21.71376957,143.45,143.36,34.93479]
[1641705171113,62.11806957,143.45,143.36,34.93479]
[1641705171515,47.37828703,143.45,143.36,34.93479]
[1641705172614,47.37828703,143.45,143.37,10.4169257]
[1641705173213,47.37828703,143.45,143.36,34.93479]
[1641705179317,47.37828703,143.45,143.37,10.42099098]
[1641705180820,47.37828703,143.45,143.38,27.66479]
[1641705183526,47.37828703,143.45,143.37,41.2488]
[1641705184927,47.37828703,143.45,143.37,68.91359]
[1641705187535,14.73978254,143.48,143.38,4.0]
[1641705187735,14.73978254,143.48,143.4,4.0]
[1641705188037,6.97204211,143.49,143.4,6.472]
[1641705188038,14.73978254,143.49,143.4,6.472]
[1641705188535,14.73978254,143.49,143.41,4.0]
[1641705188736,14.73978254,143.49,143.4,10.472]
[1641705189136,14.73978254,143.49,143.46,27.66479]
[1641705189337,41.378,143.51,143.46,34.03379]
[1641705189538,21.70963792,143.53,143.46,34.03379]
[1641705190539,6.96985538,143.53,143.46,34.03379]
[1641705194445,39.6401,143.54,143.46,34.03379]
[1641705195948,39.6401,143.54,143.47,4.0]
[1641705196148,27.66479,143.55,143.47,4.0]
[1641705196348,41.3871,143.55,143.46,35.77579]
[1641705197951,41.3871,143.55,143.46,34.03379]
[1641705199652,41.3871,143.55,143.46,27.66479]
[1641705200052,4.0,143.54,143.46,27.66479]
[1641705200252,12.159,143.54,143.47,2.66118622]
[1641705200654,8.159,143.54,143.47,2.66118622]
[1641705201155,35.82379,143.54,143.47,2.66118622]
[1641705201357,35.82379,143.54,143.45,41.2962]
[1641705201557,42.79340249,143.54,143.45,41.2962]
[1641705202156,42.79340249,143.54,143.46,2.66162129]
[1641705202559,15.12861249,143.54,143.46,2.66162129]
[1641705202758,8.159,143.54,143.46,2.66162129]
[1641705202960,41.3871,143.55,143.46,2.66162129]
[1641705203160,41.3871,143.55,143.47,27.66479]
[1641705203759,41.3871,143.55,143.46,2.66162129]
[1641705203960,54.1921,143.55,143.45,41.2962]
[1641705204359,6.96985538,143.53,143.45,41.2962]
[1641705209965,41.3871,143.55,143.45,41.2962]
[1641705210263,41.3871,143.55,143.45,47.7542]
[1641705211065,41.3871,143.55,143.46,2.66573662]
[1641705211265,41.3871,143.55,143.47,27.66479]
[1641705211566,14.73978254,143.58,143.48,4.0]
[1641705211766,14.73978254,143.58,143.49,4.0]
[1641705211969,58.55748172,143.6,143.49,4.0]
[1641705212167,51.59078254,143.6,143.5,4.0]
[1641705212667,51.59078254,143.6,143.49,5.741]
[1641705212967,51.59078254,143.6,143.48,22.29525241]
[1641705213167,36.851,143.6,143.51,2.66573662]
[1641705213367,36.851,143.6,143.53,27.66479]
[1641705213667,36.851,143.6,143.51,2.66573662]
[1641705213668,4.0,143.58,143.51,2.66573662]
[1641705213868,6.96815553,143.57,143.51,2.66573662]
[1641705214067,14.79215553,143.57,143.51,2.66573662]
[1641705214270,14.79215553,143.57,143.47,27.66479]
[1641705215372,42.45694553,143.57,143.47,27.66479]
[1641705215772,42.45694553,143.57,143.48,2.66757919]
[1641705220478,46.45694553,143.57,143.48,2.66757919]
[1641705220979,4.0,143.55,143.48,2.66757919]
[1641705221378,31.66479,143.54,143.48,2.66757919]
[1641705221577,27.66479,143.54,143.48,2.66757919]
[1641705222078,31.66479,143.54,143.48,2.66757919]
[1641705222277,31.66479,143.54,143.46,10.40984702]
[1641705222479,31.66479,143.54,143.44,13.07742621]
[1641705223380,2.2587031,143.53,143.43,2.66757919]
[1641705227684,8.9607031,143.53,143.43,2.66757919]
[1641705227883,39.1524,143.52,143.43,2.66757919]
[1641705228082,43.1524,143.52,143.43,2.66757919]
[1641705228283,50.9134,143.52,143.43,2.66757919]
[1641705229187,5.742,143.51,143.43,2.66757919]
[1641705229585,33.40679,143.51,143.43,2.66757919]
[1641705229987,29.40679,143.51,143.43,2.66757919]
[1641705230488,27.66479,143.51,143.43,2.66757919]
[1641705233288,36.16479,143.51,143.43,2.66757919]
[1641705234088,40.16479,143.51,143.43,2.66757919]
[1641705234288,4.0,143.5,143.43,2.66757919]
[1641705234490,4.0,143.45,143.43,2.66757919]
[1641705234690,10.97423022,143.44,143.42,10.40984702]
[1641705235090,10.97423022,143.44,143.42,4.702e-05]
[1641705235289,10.97423022,143.44,143.36,36.9272]
[1641705235491,6.97423022,143.44,143.36,36.9272]
[1641705235691,27.66479,143.43,143.36,36.9272]
[1641705237593,1.743,143.46,143.36,40.9272]
[1641705237793,27.66479,143.48,143.36,47.4802]
[1641705238194,27.66479,143.48,143.37,4.0]
[1641705238693,27.66479,143.48,143.36,47.4802]
[1641705238893,27.66479,143.48,143.36,36.9272]
[1641705239093,36.71279,143.48,143.36,36.9272]
[1641705239694,27.66479,143.45,143.38,27.66479]
[1641705240295,45.03127133,143.47,143.38,27.66479]
[1641705245801,45.03127133,143.47,143.41,27.66479]
[1641705246000,6.97277133,143.47,143.41,27.66479]
[1641705253206,6.97277133,143.47,143.36,36.9272]
[1641705253409,39.7087,143.46,143.36,36.9272]
[1641705253808,39.7087,143.46,143.41,27.66479]
[1641705254008,6.97277133,143.47,143.41,27.66479]
[1641705255313,6.97277133,143.47,143.36,36.9272]
[1641705255513,14.47677133,143.47,143.36,36.9272]
[1641705256024,14.47677133,143.47,143.41,27.66479]
[1641705256715,18.47677133,143.47,143.37,10.41175408]
[1641705256915,4.0,143.46,143.37,10.41175408]
[1641705257114,6.97447343,143.44,143.37,10.41175408]
[1641705257314,4.0,143.43,143.37,10.41175408]
[1641705257517,10.97568972,143.41,143.37,10.41175408]
[1641705257716,4.0,143.4,143.37,10.41175408]
[1641705257916,4.0,143.39,143.35,15.41172021]
[1641705258115,27.66479,143.38,143.35,15.41172021]
[1641705258316,35.30279,143.38,143.35,15.41172021]
[1641705258519,35.30279,143.38,143.28,79.34511021]
[1641705258717,35.30279,143.38,143.28,83.34511021]
[1641705258919,4.0,143.36,143.28,79.34511021]
[1641705259319,42.0191,143.37,143.28,79.34511021]
[1641705259519,42.0191,143.37,143.28,51.68032021]
[1641705260020,27.66479,143.34,143.28,36.2686]
[1641705260520,34.67779,143.34,143.28,36.2686]
[1641705260721,38.67779,143.34,143.28,36.2686]
[1641705260920,6.98007189,143.32,143.23,125.16064485]
[1641705261124,6.98007189,143.32,143.23,65.99259]
[1641705261323,6.98007189,143.32,143.23,27.66479]
[1641705261324,10.98007189,143.32,143.23,27.66479]
[1641705261522,10.98007189,143.32,143.22,97.69025485]
[1641705261732,4.0,143.3,143.22,97.69025485]
[1641705261922,4.0,143.28,143.22,97.69025485]
[1641705262126,4.0,143.26,143.19,27.66479]
[1641705262324,4.0,143.25,143.19,27.66479]
[1641705262824,6.98348406,143.25,143.19,27.66479]
[1641705263023,10.98348406,143.25,143.19,27.66479]
[1641705263223,4.0,143.24,143.19,27.66479]
[1641705263424,4.0,143.23,143.19,27.66479]
[1641705263627,7.784,143.23,143.19,27.66479]
[1641705263825,4.0,143.22,143.19,27.66479]
[1641705264025,4.0,143.22,143.17,27.66479]
[1641705264225,4.0,143.21,143.17,27.66479]
[1641705264424,5.745,143.22,143.17,27.66479]
[1641705264624,4.0,143.21,143.17,27.66479]
[1641705265226,4.0,143.21,143.11,36.4786]
[1641705266129,27.66479,143.17,143.11,36.4786]
[1641705266328,34.44479,143.17,143.08,27.66479]
[1641705267127,22.54458455,143.17,143.08,27.66479]
[1641705271933,4.0,143.15,143.08,27.66479]
[1641705272132,27.66479,143.13,143.06,39.8674]
[1641705272333,34.40679,143.13,143.04,37.117]
[1641705272533,34.40679,143.13,143.02,67.08949]
[1641705274733,36.15379,143.13,143.03,4.0]
[1641705274933,27.66479,143.13,143.03,4.0]
[1641705275135,27.66479,143.13,143.02,67.08949]
[1641705275335,27.66479,143.13,143.03,2.63647942]
[1641705276541,6.99129584,143.09,143.03,2.63647942]
[1641705276737,4.0,143.08,143.03,2.63647942]
[1641705276938,4.0,143.06,143.03,2.63647942]
[1641705277139,12.901,143.06,143.03,2.63647942]
[1641705277338,8.901,143.06,143.0,27.66479]
[1641705277540,12.901,143.06,143.0,27.66479]
[1641705277739,8.901,143.06,143.0,27.66479]
[1641705278238,29.41179,143.08,143.0,27.66479]
[1641705278438,27.66479,143.08,143.0,27.66479]
[1641705278838,27.66479,143.08,143.0,34.26779]
[1641705280041,55.32958,143.08,143.0,27.66479]
[1641705281642,59.32958,143.08,143.0,27.66479]
[1641705282342,55.32958,143.08,143.0,27.66479]
[1641705283643,59.32958,143.08,143.0,27.66479]
[1641705284044,55.32958,143.08,143.0,27.66479]
[1641705284250,1.747,143.09,143.0,36.59679]
[1641705284445,1.747,143.12,143.0,36.59679]
[1641705284645,1.747,143.12,143.01,37.9696]
[1641705285544,5.747,143.12,143.01,37.9696]
[1641705286145,27.66479,143.1,143.01,37.9696]
[1641705287347,27.66479,143.1,143.02,2.64249085]
[1641705289653,27.66479,143.12,143.02,6.64249085]
[1641705289854,1.747,143.16,143.02,2.64249085]
[1641705290054,1.747,143.19,143.04,10.98616739]
[1641705290254,6.98689956,143.18,143.09,27.66479]
[1641705290655,10.98689956,143.18,143.09,27.66479]
[1641705293256,10.98689956,143.18,143.1,2.65975004]
[1641705294157,6.98689956,143.18,143.1,2.65975004]
[1641705298161,6.98689956,143.18,143.12,27.66479]
[1641705299261,6.98689956,143.18,143.13,2.65975004]
[1641705300263,10.98689956,143.18,143.13,2.65975004]
[1641705300965,10.98689956,143.18,143.1,2.65975004]
[1641705301166,6.98689956,143.18,143.1,2.65975004]
[1641705302165,10.98689956,143.18,143.1,2.65975004]
[1641705302366,10.98836437,143.15,143.1,2.65975004]
[1641705302566,18.14236437,143.15,143.1,2.65975004]
[1641705302868,4.0,143.14,143.1,2.65975004]
[1641705303167,18.14236437,143.15,143.1,2.65975004]
[1641705303366,4.0,143.14,143.1,2.65975004]
[1641705304065,18.14236437,143.15,143.1,2.65975004]
[1641705304266,18.14236437,143.15,143.08,2.65975004]
[1641705304267,4.0,143.14,143.08,2.65975004]
[1641705305267,4.0,143.14,143.05,2.65975004]
[1641705305468,41.80715437,143.15,143.05,2.65975004]
[1641705305766,4.0,143.09,143.05,2.65975004]
[1641705305967,16.94654024,143.09,143.05,2.65975004]
[1641705306668,1.747,143.08,143.05,2.65975004]
[1641705306868,12.94654024,143.09,143.05,2.65975004]
[1641705307069,14.69354024,143.09,143.05,2.65975004]
[1641705307668,4.0,143.08,143.05,2.65975004]
[1641705308671,14.69354024,143.09,143.05,2.65975004]
[1641705308871,12.94654024,143.09,143.05,2.65975004]
[1641705309973,6.99154024,143.09,143.05,2.65975004]
[1641705310373,6.99154024,143.09,143.05,9.68675004]
[1641705311377,6.99154024,143.09,143.06,2.65975004]
[1641705312179,6.99154024,143.09,143.05,2.65975004]
[1641705312380,6.98958552,143.13,143.05,2.65975004]
[1641705312577,83.66627604,143.16,143.05,11.68075004]